bitfinex/quotes_SOLUSD_20240814
["timestamp","ask_amount","ask_price","bid_price","bid_amount"]
[1723637672445,0.12549,148.36,148.31,0.8445855]
[1723637672838,0.25098,148.37,148.31,0.8445855]
[1723637673052,0.12549,148.37,148.31,0.8445855]
[1723637673377,15.8106,148.38,148.31,0.8445855]
[1723637674647,0.12549,148.36,148.31,0.8445855]
[1723637674840,45.37647,148.36,148.31,0.8445855]
[1723637675035,0.12549,148.34,148.31,0.8445855]
[1723637675253,45.37647,148.34,148.31,0.8445855]
[1723637675471,0.12549,148.33,148.31,0.8445855]
[1723637675763,0.12549,148.32,148.31,0.8445855]
[1723637676090,15.59267,148.32,148.31,0.8445855]
[1723637676240,60.71816,148.32,148.31,0.8445855]
[1723637677063,15.59267,148.32,148.31,0.8445855]
[1723637677375,15.34169,148.32,148.31,0.8445855]
[1723637677566,60.71816,148.32,148.31,0.8445855]
[1723637680777,15.59267,148.32,148.31,0.8445855]
[1723637680955,15.46718,148.32,148.31,0.8445855]
[1723637681878,60.71816,148.32,148.31,0.8445855]
[1723637683268,15.59267,148.32,148.31,0.8445855]
[1723637683657,15.46718,148.32,148.31,0.8445855]
[1723637684367,15.34169,148.32,148.31,0.8445855]
[1723637684574,6.3341,148.35,148.31,0.8445855]
[1723637684754,45.12549,148.34,148.31,0.8445855]
[1723637685172,45.0,148.34,148.31,0.8445855]
[1723637685483,7.01549015,148.35,148.31,0.8445855]
[1723637686258,7.01549015,148.35,148.32,30.47]
[1723637686467,16.2539,148.4,148.32,30.47]
[1723637686665,16.2539,148.4,148.34,30.47]
[1723637688885,7.01309367,148.42,148.34,30.47]
[1723637689462,0.12549,148.41,148.34,30.47]
[1723637689983,0.25098,148.41,148.34,30.47]
[1723637690685,0.37647,148.4,148.32,30.47]
[1723637690871,0.25098,148.39,148.31,0.8445855]
[1723637691071,0.12549,148.37,148.31,0.8445855]
[1723637691788,16.87828,148.37,148.31,0.8445855]
[1723637692082,0.12549,148.35,148.31,0.8445855]
[1723637692259,0.12549,148.36,148.31,0.8445855]
[1723637692464,0.25098,148.36,148.31,0.8445855]
[1723637693092,16.6273,148.41,148.32,30.47]
[1723637693594,16.6273,148.41,148.34,30.47]
[1723637694483,45.37647,148.4,148.34,30.47]
[1723637695386,0.12549,148.39,148.34,30.47]
[1723637696969,0.12549,148.39,148.32,30.47]
[1723637701687,0.12549,148.39,148.31,0.8445855]
[1723637701993,6.86469,148.39,148.31,0.8445855]
[1723637702296,52.39075757,148.4,148.31,0.8445855]
[1723637702297,6.18339,148.37,148.31,0.8445855]
[1723637702492,0.25098,148.36,148.31,0.8445855]
[1723637702803,0.25098,148.35,148.31,0.8445855]
[1723637702966,0.12549,148.34,148.31,0.8445855]
[1723637703172,0.25098,148.35,148.31,0.8445855]
[1723637704202,0.12549,148.36,148.31,0.8445855]
[1723637704375,0.12549,148.39,148.31,0.8445855]
[1723637704577,45.50196,148.39,148.31,0.8445855]
[1723637705375,45.50196,148.39,148.32,30.47]
[1723637705792,0.50196,148.39,148.32,30.47]
[1723637706000,0.37647,148.39,148.32,30.47]
[1723637706788,0.37647,148.39,148.31,31.3145855]
[1723637707277,0.12549,148.38,148.31,31.3145855]
[1723637708784,0.12549,148.38,148.31,0.8445855]
[1723637709204,6.86509,148.38,148.31,0.8445855]
[1723637709398,6.42589,148.35,148.31,0.8445855]
[1723637709698,0.12549,148.33,148.31,0.8445855]
[1723637713804,6.86719,148.33,148.31,0.8445855]
[1723637714115,45.37647,148.32,148.31,0.8445855]
[1723637714399,45.50196,148.32,148.31,0.8445855]
[1723637715686,0.12549,148.31,148.23,50.47]
[1723637716184,0.12549,148.31,148.23,30.47]
[1723637717096,15.62399,148.31,148.23,30.47]
[1723637717299,0.12549,148.29,148.23,30.47]
[1723637717494,0.12549,148.3,148.23,30.47]
[1723637717699,15.4985,148.31,148.25,30.47]
[1723637717901,16.4401,148.34,148.25,30.47]
[1723637718108,0.12549,148.33,148.25,30.47]
[1723637718697,7.14082433,148.33,148.25,30.47]
[1723637719114,0.12549,148.32,148.25,30.47]
[1723637719918,0.12549,148.3,148.23,30.47]
[1723637720099,45.25098,148.3,148.23,30.47]
[1723637720417,0.12549,148.28,148.21,30.47]
[1723637720712,0.50196,148.28,148.21,30.47]
[1723637721306,7.01533433,148.33,148.23,30.47]
[1723637721492,0.25098,148.32,148.25,30.47]
[1723637721803,0.12549,148.31,148.25,30.47]
[1723637722510,7.01533433,148.33,148.25,30.47]
[1723637722721,7.01533433,148.33,148.27,30.47]
[1723637723298,7.01533433,148.33,148.25,30.47]
[1723637723699,0.25098,148.32,148.25,30.47]
[1723637723891,0.12549,148.31,148.25,30.47]
[1723637724211,0.25098,148.32,148.25,30.47]
[1723637724408,45.25098,148.32,148.25,30.47]
[1723637724592,0.12549,148.31,148.23,30.47]
[1723637724929,0.12549,148.3,148.19,22.924]
[1723637725085,0.25098,148.3,148.2,30.47]
[1723637725293,45.25098,148.3,148.2,30.47]
[1723637725493,0.25098,148.29,148.2,30.47]
[1723637725697,0.25098,148.28,148.2,30.47]
[1723637725916,0.12549,148.27,148.2,30.47]
[1723637726137,0.12549,148.27,148.22,30.47]
[1723637726316,6.7422,148.32,148.19,22.924]
[1723637726317,7.01533433,148.33,148.23,30.47]
[1723637726493,7.01533433,148.33,148.27,30.47]
[1723637726695,381.7,148.36,148.29,30.47]
[1723637726915,15.7461,148.38,148.29,30.47]
[1723637727118,7.01217427,148.36,148.29,30.47]
[1723637727301,57.48217427,148.36,148.22,16.1864]
[1723637727501,6.7427,148.31,148.22,16.1864]
[1723637727925,0.12549,148.3,148.22,16.1864]
[1723637728301,45.25098,148.3,148.22,16.1864]
[1723637728608,15.85918,148.29,148.21,38.26]
[1723637728822,0.12549,148.29,148.23,38.26]
[1723637729003,15.6082,148.33,148.25,38.26]
[1723637729327,15.6082,148.33,148.23,38.26]
[1723637729526,15.6082,148.33,148.25,38.26]
[1723637730025,22.35,148.33,148.25,38.26]
[1723637730398,6.7422,148.32,148.23,38.26]
[1723637730599,15.6082,148.33,148.21,38.26]
[1723637730798,6.7425,148.32,148.21,38.26]
[1723637731108,0.12549,148.3,148.21,38.26]
[1723637731314,45.12549,148.3,148.21,38.26]
[1723637731626,0.37647,148.29,148.21,38.26]
[1723637731820,0.12549,148.28,148.21,38.26]
[1723637732323,15.6082,148.33,148.23,38.26]
[1723637732500,45.25098,148.32,148.23,38.26]
[1723637732923,6.7435,148.3,148.21,38.26]
[1723637733126,6.26568,148.29,148.19,44.8862]
[1723637733335,0.12549,148.27,148.19,6.6262]
[1723637733656,6.26568,148.29,148.21,38.26]
[1723637733926,21.6229,148.33,148.23,38.26]
[1723637734118,21.6229,148.33,148.25,38.26]
[1723637735198,28.3649,148.33,148.25,38.26]
[1723637735411,0.12549,148.32,148.23,38.26]
[1723637736027,45.50196,148.32,148.23,38.26]
[1723637736327,52.24416,148.32,148.23,38.26]
[1723637736629,45.50196,148.32,148.23,38.26]
[1723637737422,52.52039845,148.32,148.23,38.26]
[1723637739238,59.26259845,148.32,148.23,38.26]
[1723637739421,6.7426,148.31,148.23,38.26]
[1723637739614,45.50196,148.3,148.21,38.26]
[1723637740013,52.24516,148.3,148.21,38.26]
[1723637740515,45.50196,148.3,148.21,38.26]
[1723637741039,0.50196,148.3,148.21,38.26]
[1723637741409,7.01843845,148.32,148.25,38.26]
[1723637741741,258.9,148.36,148.27,38.26]
[1723637741903,7.02480137,148.36,148.29,38.26]
[1723637742337,397.9209,148.37,148.31,38.26]
[1723637743312,25.74764436,148.41,148.33,38.26]
[1723637743838,32.77203418,148.41,148.31,38.26]
[1723637744013,20.0,148.39,148.27,38.26]
[1723637744207,6.7411,148.35,148.27,38.26]
[1723637744440,20.0,148.39,148.27,38.26]
[1723637744619,0.12549,148.34,148.27,38.26]
[1723637745034,52.24326,148.34,148.25,38.26]
[1723637745221,0.12549,148.32,148.23,60.8791]
[1723637745422,52.24416,148.32,148.23,38.26]
[1723637745931,45.50196,148.32,148.23,38.26]
[1723637747045,45.50196,148.32,148.25,38.26]
[1723637747718,0.50196,148.32,148.25,38.26]
[1723637747942,0.37647,148.32,148.25,38.26]
[1723637749946,15.9793,148.33,148.27,38.26]
[1723637750253,22.2133,148.37,148.29,38.26]
[1723637750431,22.2133,148.37,148.31,38.26]
[1723637750621,15.6107,148.37,148.31,38.26]
[1723637750827,29.23768982,148.41,148.31,38.26]
[1723637752143,45.50196,148.4,148.31,38.26]
[1723637752537,45.25098,148.4,148.33,38.26]
[1723637752739,0.12549,148.4,148.33,38.26]
[1723637753155,29.23768982,148.41,148.33,38.26]
[1723637753944,29.23768982,148.41,148.31,38.26]
[1723637754151,29.23768982,148.41,148.29,38.26]
[1723637754334,0.12549,148.38,148.3,20.0]
[1723637754644,45.50196,148.38,148.3,20.0]
[1723637755035,52.52616818,148.38,148.3,20.0]
[1723637755619,52.52616818,148.38,148.29,38.26]
[1723637755943,59.26586818,148.38,148.29,38.26]
[1723637756246,59.26586818,148.38,148.27,54.2278]
[1723637756427,59.26586818,148.38,148.28,20.0]
[1723637756942,52.52616818,148.38,148.28,20.0]
[1723637758322,7.40067818,148.38,148.31,38.26]
[1723637758523,22.2133,148.41,148.31,38.26]
[1723637758727,29.2361325,148.41,148.33,38.26]
[1723637759932,0.12549,148.4,148.33,38.26]
[1723637760354,29.2361325,148.41,148.35,38.26]
[1723637760855,15.6107,148.41,148.37,38.26]
[1723637761720,16.246,148.44,148.37,38.26]
[1723637762151,16.246,148.44,148.39,38.26]
[1723637762948,16.246,148.44,148.34,15.3525]
[1723637762949,15.9595,148.48,148.41,38.26]
[1723637763929,7.01870293,148.5,148.45,38.26]
[1723637764124,22.3804,148.53,148.45,38.26]
[1723637764331,29.3979801,148.53,148.45,38.26]
[1723637764834,22.3804,148.53,148.45,38.26]
[1723637765154,22.3804,148.53,148.42,15.2939]
[1723637765340,22.3804,148.53,148.46,38.26]
[1723637766945,22.3804,148.53,148.42,38.26]
[1723637766946,0.12549,148.52,148.42,38.26]
[1723637767252,0.12549,148.49,148.42,38.26]
[1723637767759,0.37647,148.49,148.42,38.26]
[1723637768459,0.12549,148.49,148.42,38.26]
[1723637769447,45.50196,148.5,148.42,38.26]
[1723637770247,0.50196,148.5,148.42,38.26]
[1723637771187,0.37647,148.5,148.42,38.26]
[1723637771343,0.25098,148.5,148.42,38.26]
[1723637771661,22.3804,148.53,148.44,38.26]
[1723637771959,0.12549,148.52,148.44,38.26]
[1723637772861,22.3804,148.53,148.46,38.26]
[1723637774433,7.01829495,148.55,148.52,38.26]
[1723637774742,6.1044,148.61,148.54,38.26]
[1723637774743,22.4337,148.61,148.54,38.26]
[1723637774953,6.7277,148.64,148.54,38.26]
[1723637775158,258.9,148.67,148.56,38.26]
[1723637775159,7.01459383,148.63,148.56,38.26]
[1723637776156,6.7269,148.66,148.56,38.26]
[1723637776358,13.74053277,148.65,148.56,38.26]
[1723637776748,7.01333277,148.65,148.56,38.26]
[1723637777154,13.74093277,148.65,148.56,38.26]
[1723637777371,13.6751855,148.68,148.6,38.26]
[1723637778077,6.7263,148.67,148.57,38.26]
[1723637778691,6.9489855,148.68,148.57,38.26]
[1723637778692,0.12549,148.66,148.57,38.26]
[1723637778876,13.6747855,148.68,148.57,38.26]
[1723637779260,6.9489855,148.68,148.57,38.26]
[1723637780147,45.25098,148.67,148.57,38.26]
[1723637780448,52.25943491,148.67,148.57,38.26]
[1723637780656,0.25098,148.66,148.57,38.26]
[1723637782268,0.12549,148.6,148.51,38.26]
[1723637782473,45.50196,148.6,148.51,38.26]
[1723637782684,0.12549,148.6,148.51,38.26]
[1723637782882,0.12549,148.62,148.51,38.26]
[1723637783088,45.50196,148.62,148.53,38.26]
[1723637783374,45.50196,148.62,148.46,15.9446]
[1723637783375,6.75179,148.59,148.51,38.26]
[1723637783786,0.12549,148.57,148.49,38.26]
[1723637784467,0.12549,148.57,148.47,38.26]
[1723637784667,0.25098,148.57,148.47,38.26]
[1723637784866,0.25098,148.56,148.47,38.26]
[1723637785663,0.25098,148.56,148.48,20.0]
[1723637786759,0.12549,148.55,148.48,20.0]
[1723637787689,45.25098,148.56,148.48,20.0]
[1723637787995,0.25098,148.56,148.49,38.26]
[1723637789475,0.12549,148.58,148.49,38.26]
[1723637789682,6.6263,148.59,148.51,38.26]
[1723637790977,13.3562,148.59,148.51,38.26]
[1723637791168,45.12549,148.58,148.51,38.26]
[1723637791368,6.6263,148.59,148.51,38.26]
[1723637791772,6.6263,148.59,148.53,38.26]
[1723637791976,6.5614,148.64,148.55,38.26]
[1723637792181,7.01259808,148.63,148.55,38.26]
[1723637792386,6.5614,148.64,148.55,38.26]
[1723637792991,6.5614,148.64,148.57,38.26]
[1723637793175,6.5614,148.64,148.59,38.26]
[1723637793375,15.5194,148.65,148.59,38.26]
[1723637794096,15.5194,148.65,148.57,38.26]
[1723637794472,15.5194,148.65,148.55,38.26]
[1723637794473,22.2467,148.65,148.55,38.26]
[1723637794677,6.7279,148.64,148.55,38.26]
[1723637794879,6.7279,148.64,148.53,38.26]
[1723637795188,6.4681,148.6,148.51,38.26]
[1723637796599,6.4681,148.6,148.52,20.0]
[1723637796797,0.37647,148.59,148.52,20.0]
[1723637797101,0.37647,148.59,148.51,38.26]
[1723637797299,45.37647,148.59,148.51,38.26]
[1723637797692,0.37647,148.59,148.51,38.26]
[1723637797884,6.4681,148.6,148.53,38.26]
[1723637798083,6.4681,148.6,148.47,44.7609]
[1723637798084,6.4681,148.6,148.55,38.26]
[1723637798288,6.0784,148.64,148.55,38.26]
[1723637798489,6.0784,148.64,148.57,38.26]
[1723637800300,0.12549,148.63,148.57,38.26]
[1723637800495,0.37647,148.63,148.55,38.26]
[1723637801278,45.37647,148.63,148.55,38.26]
[1723637801701,0.25098,148.63,148.55,38.26]
[1723637801901,0.12549,148.63,148.55,38.26]
[1723637802096,45.50196,148.63,148.55,38.26]
[1723637803286,45.37647,148.63,148.55,38.26]
[1723637805099,0.37647,148.63,148.55,38.26]
[1723637805314,6.20389,148.64,148.55,38.26]
[1723637807974,6.0784,148.64,148.57,38.26]
[1723637808175,6.0784,148.64,148.59,38.26]
[1723637808914,22.53113953,148.65,148.59,38.26]
[1723637809606,0.8445855,148.68,148.63,38.26]
[1723637809798,0.8445855,148.68,148.65,38.26]
[1723637810974,0.8445855,148.68,148.6,0.37647]
[1723637810975,0.8445855,148.68,148.63,38.26]
[1723637811171,0.8445855,148.68,148.61,38.26]
[1723637811380,0.8445855,148.68,148.59,38.26]
[1723637811683,6.7269,148.66,148.55,38.26]
[1723637811871,0.12549,148.65,148.55,38.26]
[1723637812089,0.25098,148.65,148.55,38.26]
[1723637812295,0.12549,148.64,148.55,38.26]
[1723637812475,0.12549,148.63,148.55,38.26]
[1723637813401,0.12549,148.65,148.57,38.26]
[1723637814600,0.8445855,148.68,148.59,38.26]
[1723637816394,0.12549,148.67,148.59,38.26]
[1723637816906,0.37647,148.67,148.59,38.26]
[1723637818000,45.8445855,148.68,148.59,38.26]
[1723637818208,0.8445855,148.68,148.59,38.26]
[1723637819095,0.8445855,148.68,148.61,38.26]
[1723637819799,0.8445855,148.68,148.62,1.13982769]
[1723637820189,0.8445855,148.68,148.61,38.26]
[1723637821591,0.12549,148.67,148.59,38.26]
[1723637821794,0.37647,148.67,148.6,20.0]
[1723637821994,0.8445855,148.68,148.6,20.0]
[1723637822301,0.37647,148.67,148.6,20.0]
[1723637822900,0.8445855,148.68,148.61,38.26]
[1723637823493,0.12549,148.67,148.61,38.26]
[1723637823739,0.50196,148.67,148.61,38.26]
[1723637823885,0.37647,148.67,148.61,38.26]
[1723637824216,6.6157,148.64,148.55,38.26]
[1723637824391,0.37647,148.63,148.55,38.26]
[1723637824791,0.12549,148.62,148.55,38.26]
[1723637824988,0.12549,148.62,148.53,38.26]
[1723637826017,0.12549,148.62,148.54,20.0]
[1723637826612,45.37647,148.63,148.54,20.0]
[1723637827315,0.12549,148.62,148.54,20.0]
[1723637827696,0.12549,148.62,148.53,38.26]
[1723637828305,6.7304,148.58,148.45,22.5992]
[1723637828594,0.12549,148.55,148.48,38.26]
[1723637828813,0.25098,148.55,148.48,38.26]
[1723637829194,0.12549,148.53,148.46,38.26]
[1723637829422,0.25098,148.53,148.46,38.26]
[1723637832297,0.12549,148.51,148.44,38.26]
[1723637832695,0.25098,148.51,148.44,38.26]
[1723637832911,0.25098,148.52,148.44,38.26]
[1723637833319,0.12549,148.53,148.46,38.26]
[1723637833615,22.95295874,148.54,148.46,38.26]
[1723637833815,15.9376,148.54,148.48,38.26]
[1723637833995,15.9376,148.54,148.5,38.26]
[1723637834191,6.051,148.56,148.5,38.26]
[1723637834823,6.051,148.56,148.47,38.26]
[1723637835032,6.051,148.56,148.48,20.0]
[1723637835802,15.9643,148.58,148.54,38.26]
[1723637836206,15.9643,148.58,148.52,38.26]
[1723637836898,15.9643,148.58,148.54,38.26]
[1723637837325,6.1064,148.59,148.54,38.26]
[1723637838023,6.1064,148.59,148.52,38.26]
[1723637838322,6.1064,148.59,148.54,38.26]
[1723637839408,0.12549,148.58,148.52,38.26]
[1723637839609,0.37647,148.58,148.52,38.26]
[1723637839837,0.37647,148.58,148.5,38.26]
[1723637840028,0.12549,148.56,148.47,38.26]
[1723637840340,16.6631,148.55,148.47,38.26]
[1723637840506,16.6631,148.55,148.49,38.26]
[1723637840708,0.12549,148.58,148.51,38.26]
[1723637841014,22.2137,148.59,148.53,38.26]
[1723637844100,0.12549,148.61,148.53,38.26]
[1723637844305,7.01420209,148.62,148.57,38.26]
[1723637844505,6.7294,148.61,148.53,38.26]
[1723637844725,7.01660939,148.61,148.51,38.26]
[1723637844923,7.01660939,148.61,148.52,20.0]
[1723637845130,7.01660939,148.61,148.53,38.26]
[1723637847229,21.3076,148.63,148.55,38.26]
[1723637849211,21.3076,148.63,148.57,38.26]
[1723637850237,21.3076,148.63,148.54,83.38549]
[1723637850442,21.3076,148.63,148.55,20.0]
[1723637851414,15.2478,148.63,148.55,20.0]
[1723637851609,381.7,148.65,148.56,45.12549]
[1723637851815,29.0831,148.67,148.58,38.26]
[1723637852333,6.7268,148.66,148.58,38.26]
[1723637852537,29.3684815,148.67,148.55,20.0]
[1723637852746,6.7286,148.62,148.55,20.0]
[1723637853038,6.97908,148.63,148.55,20.0]
[1723637853237,0.12549,148.61,148.54,38.26]
[1723637853427,0.12549,148.62,148.54,38.26]
[1723637853773,22.3567,148.67,148.56,38.26]
[1723637853918,22.3567,148.67,148.58,38.26]
[1723637854424,22.3567,148.67,148.6,38.26]
[1723637855834,0.12549,148.66,148.49,21.7216]
[1723637856036,6.7282,148.63,148.49,21.7216]
[1723637856336,45.50196,148.66,148.49,21.7216]
[1723637856337,0.37647,148.62,148.53,38.26]
[1723637856739,0.12549,148.64,148.53,38.26]
[1723637856927,0.12549,148.63,148.55,38.26]
[1723637857124,0.37647,148.63,148.55,38.26]
[1723637857437,7.10457,148.63,148.55,38.26]
[1723637857658,0.37647,148.63,148.55,38.26]
[1723637857861,7.10477,148.63,148.55,38.26]
[1723637858235,0.37647,148.63,148.55,38.26]
[1723637859043,45.12549,148.64,148.55,38.26]
[1723637859246,7.01344101,148.65,148.57,38.26]
[1723637860259,7.01344101,148.65,148.59,38.26]
[1723637860759,22.3567,148.67,148.59,38.26]
[1723637861631,0.25098,148.66,148.59,38.26]
[1723637862057,6.7276,148.65,148.57,38.26]
[1723637862259,0.37647,148.64,148.58,20.0]
[1723637862554,52.10417,148.64,148.55,38.26]
[1723637863346,0.12549,148.6,148.53,38.26]
[1723637863545,6.73,148.59,148.51,38.26]
[1723637863790,51.85589,148.58,148.49,38.26]
[1723637864066,0.12549,148.57,148.49,38.26]
[1723637864247,0.25098,148.57,148.45,21.5985]
[1723637864446,6.7329,148.53,148.43,38.26]
[1723637864636,0.25098,148.52,148.43,38.26]
[1723637865042,6.98408,148.52,148.43,38.26]
[1723637865249,61.20479,148.51,148.41,60.5764]
[1723637865439,0.25098,148.5,148.41,38.26]
[1723637865657,0.12549,148.49,148.41,38.26]
[1723637865849,0.12549,148.48,148.41,38.26]
[1723637866048,0.25098,148.49,148.41,38.26]
[1723637867745,0.12549,148.49,148.41,38.26]
[1723637868260,0.12549,148.5,148.41,38.26]
[1723637868469,0.25098,148.5,148.43,38.26]
[1723637868665,0.12549,148.5,148.43,38.26]
[1723637871290,45.25098,148.5,148.41,38.26]
[1723637871584,0.25098,148.5,148.42,20.0]
[1723637872290,23.09520004,148.51,148.42,20.0]
[1723637872583,23.09520004,148.51,148.45,38.26]
[1723637872584,16.0793,148.51,148.45,38.26]
[1723637874376,16.0793,148.51,148.43,38.26]
[1723637874570,16.0793,148.51,148.44,20.0]
[1723637878890,16.0793,148.51,148.45,38.26]
[1723637879268,7.01477738,148.55,148.49,38.26]
[1723637879468,22.2813,148.57,148.49,38.26]
[1723637880198,22.2813,148.57,148.47,38.26]
[1723637880486,22.2813,148.57,148.45,38.26]
[1723637880691,6.7325,148.54,148.44,20.0]
[1723637880893,6.7317,148.55,148.43,38.26]
[1723637881089,6.7325,148.54,148.43,38.26]
[1723637881770,45.50196,148.53,148.43,38.26]
[1723637881970,52.23466,148.53,148.44,30.51]
[1723637883377,52.23466,148.53,148.42,30.51]
[1723637883378,0.12549,148.51,148.42,30.51]
[1723637883698,45.50196,148.51,148.43,20.0]
[1723637884281,45.50196,148.51,148.44,30.51]
[1723637884497,23.0704,148.52,148.46,30.51]
[1723637886408,21.6735,148.56,148.48,30.51]
[1723637887304,21.6735,148.56,148.46,30.51]
[1723637887616,6.7322,148.54,148.44,30.51]
[1723637887773,0.25098,148.53,148.45,20.0]
[1723637887977,0.25098,148.52,148.45,20.0]
[1723637888283,0.12549,148.51,148.45,20.0]
[1723637888482,0.12549,148.51,148.44,30.51]
[1723637889505,0.12549,148.5,148.42,30.51]
[1723637889696,0.25098,148.5,148.43,20.0]
[1723637890104,0.25098,148.5,148.42,30.51]
[1723637890300,7.01889944,148.52,148.46,30.51]
[1723637892101,21.6735,148.56,148.46,30.51]
[1723637892408,0.12549,148.54,148.46,30.51]
[1723637892582,45.50196,148.54,148.46,30.51]
[1723637894019,52.23436,148.54,148.46,30.51]
[1723637894919,45.50196,148.54,148.46,30.51]
[1723637895124,0.12549,148.51,148.46,30.51]
[1723637895431,45.50196,148.51,148.44,30.51]
[1723637895742,45.37647,148.51,148.44,30.51]
[1723637895905,0.12549,148.54,148.46,30.51]
[1723637896104,0.12549,148.53,148.46,30.51]
[1723637896309,0.25098,148.53,148.46,30.51]
[1723637897129,0.12549,148.53,148.48,30.51]
[1723637897310,0.25098,148.54,148.46,30.51]
[1723637897512,0.12549,148.53,148.46,30.51]
[1723637897730,6.85859,148.52,148.44,30.51]
[1723637897929,0.12549,148.51,148.44,30.51]
[1723637898227,0.12549,148.52,148.46,30.51]
[1723637898446,0.25098,148.52,148.46,30.51]
[1723637898604,0.12549,148.51,148.46,30.51]
[1723637899005,0.12549,148.51,148.44,30.51]
[1723637901031,0.12549,148.5,148.44,30.51]
[1723637901705,15.9269,148.49,148.44,30.51]
[1723637901911,0.25098,148.48,148.44,30.51]
[1723637902930,13.49818,148.48,148.42,30.51]
[1723637903134,6.76308,148.48,148.4,30.51]
[1723637904620,0.12549,148.47,148.4,30.51]
[1723637904911,45.12549,148.47,148.4,30.51]
[1723637905211,0.25098,148.46,148.4,30.51]
[1723637907716,0.12549,148.47,148.42,30.51]
[1723637907906,0.37647,148.47,148.42,30.51]
[1723637908105,6.5121,148.48,148.42,30.51]
[1723637911919,6.5121,148.48,148.44,30.51]
[1723637912713,6.33405368,148.48,148.44,30.51]
[1723637913325,6.33405368,148.48,148.37,32.32201048]
[1723637913534,0.25098,148.47,148.41,30.51]
[1723637913721,51.98638,148.47,148.41,30.51]
[1723637913919,0.25098,148.46,148.41,30.51]
[1723637914932,0.25098,148.46,148.37,32.32201048]
[1723637915133,6.98678,148.46,148.38,50.51]
[1723637915340,45.37647,148.45,148.38,50.51]
[1723637916528,0.12549,148.45,148.4,30.51]
[1723637916715,0.12549,148.46,148.4,30.51]
[1723637918124,0.12549,148.45,148.4,30.51]
[1723637918350,0.25098,148.45,148.4,30.51]
[1723637919333,13.35531124,148.48,148.42,30.51]
[1723637919535,13.35531124,148.48,148.44,30.51]
[1723637919536,6.33405368,148.48,148.44,30.51]
[1723637920151,15.9269,148.49,148.44,30.51]
[1723637921844,15.9269,148.49,148.4,46.7246]
[1723637921845,15.9269,148.49,148.42,30.51]
[1723637923348,0.12549,148.48,148.42,30.51]
[1723637923920,15.9269,148.49,148.4,16.2146]
[1723637923921,15.9269,148.49,148.44,30.51]
[1723637930653,6.2814,148.52,148.44,30.51]
[1723637935766,45.50196,148.51,148.42,30.51]
[1723637935964,45.50196,148.51,148.43,20.0]
[1723637936859,0.12549,148.49,148.4,30.51]
[1723637937056,45.50196,148.49,148.4,30.51]
[1723637940150,45.37647,148.49,148.4,30.51]
[1723637940468,16.2436,148.5,148.42,30.51]
[1723637941763,0.25098,148.49,148.42,30.51]
[1723637942372,45.25098,148.49,148.4,30.51]
[1723637942676,45.25098,148.49,148.41,20.0]
[1723637943069,0.12549,148.48,148.41,20.0]
[1723637943281,0.25098,148.48,148.41,20.0]